[Event "*** Titled Tuesday Blitz"]
[Site "Chess.com"]
[Date "2020.05.12"]
[Round "10"]
[White "Olga_Girya"]
[Black "Xeniya2005"]
[Result "1-0"]
[WhiteElo "2429"]
[BlackElo "2277"]
[TimeControl "180+1"]
[EndTime "11:53:42 PDT"]
[Termination "Olga_Girya won by resignation"]

1. d4 {[%clk 0:02:56.8]} 1... Nf6 {[%clk 0:02:59.3]} 2. c4 {[%clk 0:02:56.8]}
2... e6 {[%clk 0:02:57.7]} 3. Nf3 {[%clk 0:02:56.9]} 3... Bb4+ {[%clk
0:02:56.3]} 4. Bd2 {[%clk 0:02:56.4]} 4... a5 {[%clk 0:02:55.8]} 5. a3 {[%clk
0:02:54.6]} 5... Bxd2+ {[%clk 0:02:52.9]} 6. Qxd2 {[%clk 0:02:55.5]} 6... O-O
{[%clk 0:02:51.8]} 7. Nc3 {[%clk 0:02:56]} 7... d5 {[%clk 0:02:50.7]} 8. e3
{[%clk 0:02:54.7]} 8... b6 {[%clk 0:02:49.9]} 9. cxd5 {[%clk 0:02:49.1]} 9...
exd5 {[%clk 0:02:48.9]} 10. Bd3 {[%clk 0:02:48]} 10... Bb7 {[%clk 0:02:41.5]}
11. Qc2 {[%clk 0:02:48.1]} 11... h6 {[%clk 0:02:39]} 12. O-O {[%clk 0:02:47.4]}
12... Nbd7 {[%clk 0:02:38.4]} 13. Rac1 {[%clk 0:02:35]} 13... Qe7 {[%clk
0:02:29.1]} 14. Bf5 {[%clk 0:02:21.5]} 14... Rac8 {[%clk 0:01:56]} 15. Rfd1
{[%clk 0:02:19.5]} 15... g6 {[%clk 0:01:10.4]} 16. Bxd7 {[%clk 0:02:11.2]} 16...
Nxd7 {[%clk 0:01:08.7]} 17. Qb3 {[%clk 0:02:07.6]} 17... Qe6 {[%clk 0:01:01.5]}
18. Nb5 {[%clk 0:02:00.2]} 18... c6 {[%clk 0:01:00.6]} 19. Nc3 {[%clk
0:01:58.9]} 19... b5 {[%clk 0:00:47.6]} 20. Ne2 {[%clk 0:01:51.9]} 20... Qd6
{[%clk 0:00:42.8]} 21. Nf4 {[%clk 0:01:51.3]} 21... Rce8 {[%clk 0:00:40.8]} 22.
Nd3 {[%clk 0:01:49.4]} 22... Nb6 {[%clk 0:00:34.4]} 23. Nfe5 {[%clk 0:01:37]}
23... Nc4 {[%clk 0:00:29.5]} 24. a4 {[%clk 0:01:30]} 24... Ba6 {[%clk 0:00:12]}
25. Qc2 {[%clk 0:01:23.5]} 25... bxa4 {[%clk 0:00:09.3]} 26. Qxa4 {[%clk
0:01:05]} 26... Bb5 {[%clk 0:00:09.2]} 27. Qc2 {[%clk 0:01:05]} 27... Rc8 {[%clk
0:00:07.3]} 28. b3 {[%clk 0:01:01.8]} 28... Nxe5 {[%clk 0:00:06.9]} 29. Nxe5
{[%clk 0:01:00]} 29... Kg7 {[%clk 0:00:07.1]} 30. Qc5 {[%clk 0:00:58.7]} 30...
Qe6 {[%clk 0:00:04.1]} 31. Ra1 {[%clk 0:00:53.7]} 31... Ra8 {[%clk 0:00:03.4]}
32. Rd2 {[%clk 0:00:52.1]} 32... Rfb8 {[%clk 0:00:02.9]} 33. Rda2 {[%clk
0:00:50.5]} 33... f6 {[%clk 0:00:03.2]} 34. Nf3 {[%clk 0:00:49]} 34... Bd3
{[%clk 0:00:02.6]} 35. Qc3 {[%clk 0:00:44.9]} 35... Be4 {[%clk 0:00:01.4]} 36.
Nd2 {[%clk 0:00:44.1]} 36... Bf5 {[%clk 0:00:01.2]} 37. Rxa5 {[%clk 0:00:42.8]}
37... Rxa5 {[%clk 0:00:02.1]} 38. Rxa5 {[%clk 0:00:42.7]} 38... Qd7 {[%clk
0:00:02.7]} 39. Qc5 {[%clk 0:00:41.5]} 39... Rb7 {[%clk 0:00:02.8]} 40. Ra6
{[%clk 0:00:41.2]} 40... Rc7 {[%clk 0:00:03.2]} 41. Ra8 {[%clk 0:00:39]} 41...
Bd3 {[%clk 0:00:03.7]} 42. Qf8+ {[%clk 0:00:38]} 1-0

[Event "*** Titled Tuesday Blitz"]
[Site "Chess.com"]
[Date "2020.05.12"]
[Round "10"]
[White "elohunter1999"]
[Black "Godzillator"]
[Result "1-0"]
[WhiteElo "2587"]
[BlackElo "2470"]
[TimeControl "180+1"]
[EndTime "11:53:44 PDT"]
[Termination "elohunter1999 won on time"]

1. e4 {[%clk 0:02:45.2]} 1... c6 {[%clk 0:02:59.8]} 2. d4 {[%clk 0:02:44.4]}
2... d5 {[%clk 0:03:00.1]} 3. e5 {[%clk 0:02:44.1]} 3... Bf5 {[%clk 0:02:59.7]}
4. Nf3 {[%clk 0:02:43.3]} 4... e6 {[%clk 0:02:59.5]} 5. Be2 {[%clk 0:02:42.9]}
5... c5 {[%clk 0:02:59.5]} 6. Be3 {[%clk 0:02:40.5]} 6... cxd4 {[%clk
0:02:59.8]} 7. Nxd4 {[%clk 0:02:39.9]} 7... Ne7 {[%clk 0:03:00.3]} 8. O-O {[%clk
0:02:39.4]} 8... Nbc6 {[%clk 0:02:59.4]} 9. Bb5 {[%clk 0:02:38.4]} 9... a6
{[%clk 0:02:58]} 10. Bxc6+ {[%clk 0:02:36.6]} 10... bxc6 {[%clk 0:02:53.9]} 11.
c4 {[%clk 0:02:20]} 11... Bg6 {[%clk 0:02:52.8]} 12. Qa4 {[%clk 0:02:06.4]}
12... Qd7 {[%clk 0:02:48.9]} 13. Na3 {[%clk 0:01:46.1]} 13... c5 {[%clk
0:02:11.7]} 14. Ndb5 {[%clk 0:00:52.7]} 14... Nc6 {[%clk 0:02:10.7]} 15. cxd5
{[%clk 0:00:51.1]} 15... exd5 {[%clk 0:02:10.5]} 16. Rfd1 {[%clk 0:00:47.9]}
16... d4 {[%clk 0:02:07]} 17. Nc4 {[%clk 0:00:45]} 17... axb5 {[%clk 0:01:22.5]}
18. Qxa8+ {[%clk 0:00:43.5]} 18... Nd8 {[%clk 0:01:18.5]} 19. Na5 {[%clk
0:00:33.5]} 19... Be7 {[%clk 0:01:14.4]} 20. b4 {[%clk 0:00:32.7]} 20... Qe6
{[%clk 0:01:05.1]} 21. Bf4 {[%clk 0:00:24.9]} 21... O-O {[%clk 0:01:00.6]} 22.
bxc5 {[%clk 0:00:24.6]} 22... Bxc5 {[%clk 0:00:55.1]} 23. Rac1 {[%clk
0:00:24.6]} 23... Bb6 {[%clk 0:00:48.5]} 24. Nc6 {[%clk 0:00:24.3]} 24... Qg4
{[%clk 0:00:32.8]} 25. Bg3 {[%clk 0:00:21.2]} 25... Be4 {[%clk 0:00:32.1]} 26.
f3 {[%clk 0:00:16.4]} 26... d3+ {[%clk 0:00:26]} 27. Kh1 {[%clk 0:00:16.1]}
27... Bxf3 {[%clk 0:00:25.8]} 28. Ne7+ {[%clk 0:00:16]} 28... Kh8 {[%clk
0:00:24]} 29. Qxf3 {[%clk 0:00:16.9]} 29... Qa4 {[%clk 0:00:19]} 30. Nd5 {[%clk
0:00:15.9]} 30... Ba7 {[%clk 0:00:17.9]} 31. Rxd3 {[%clk 0:00:15.5]} 31... Ne6
{[%clk 0:00:17]} 32. Ra3 {[%clk 0:00:14.9]} 32... Qd4 {[%clk 0:00:16.1]} 33. Rd1
{[%clk 0:00:12.8]} 33... Qc5 {[%clk 0:00:16]} 34. Rc3 {[%clk 0:00:12.8]} 1-0

[Event "*** Titled Tuesday Blitz"]
[Site "Chess.com"]
[Date "2020.05.12"]
[Round "10"]
[White "AGW2016"]
[Black "ASVZ"]
[Result "1-0"]
[WhiteElo "2174"]
[BlackElo "2337"]
[TimeControl "180+1"]
[EndTime "11:53:44 PDT"]
[Termination "AGW2016 won on time"]

1. e4 {[%clk 0:03:00.9]} 1... e6 {[%clk 0:02:59.7]} 2. d4 {[%clk 0:02:57.2]}
2... d5 {[%clk 0:02:59.7]} 3. exd5 {[%clk 0:02:57.3]} 3... exd5 {[%clk
0:02:59.9]} 4. Nf3 {[%clk 0:02:56.8]} 4... Nc6 {[%clk 0:02:58.7]} 5. Bd3 {[%clk
0:02:53.5]} 5... Bd6 {[%clk 0:02:58.8]} 6. O-O {[%clk 0:02:52.6]} 6... Nge7
{[%clk 0:02:59.7]} 7. c4 {[%clk 0:02:49.2]} 7... dxc4 {[%clk 0:02:55.1]} 8. Bxc4
{[%clk 0:02:48.9]} 8... O-O {[%clk 0:02:56]} 9. Nc3 {[%clk 0:02:49.2]} 9... Bg4
{[%clk 0:02:53.6]} 10. h3 {[%clk 0:02:49]} 10... Bh5 {[%clk 0:02:53.6]} 11. Bg5
{[%clk 0:02:47.6]} 11... Qd7 {[%clk 0:02:49]} 12. Ne5 {[%clk 0:02:39.6]} 12...
Bxe5 {[%clk 0:02:38.8]} 13. Qxh5 {[%clk 0:02:38.5]} 13... g6 {[%clk 0:02:33.5]}
14. Qe2 {[%clk 0:02:33.9]} 14... Bxd4 {[%clk 0:02:27.9]} 15. Rad1 {[%clk
0:02:32]} 15... Rfe8 {[%clk 0:02:26.8]} 16. Qf3 {[%clk 0:02:29.2]} 16... Qf5
{[%clk 0:02:22.8]} 17. Qxf5 {[%clk 0:02:16.1]} 17... Nxf5 {[%clk 0:02:23]} 18.
Nd5 {[%clk 0:02:16.7]} 18... Rac8 {[%clk 0:02:08.5]} 19. Rxd4 {[%clk 0:02:08.6]}
19... Ncxd4 {[%clk 0:02:08.7]} 20. Nf6+ {[%clk 0:02:07.5]} 20... Kg7 {[%clk
0:02:08.5]} 21. Nxe8+ {[%clk 0:02:06.5]} 21... Rxe8 {[%clk 0:02:09.4]} 22. Rd1
{[%clk 0:02:03.5]} 22... c5 {[%clk 0:02:09]} 23. a4 {[%clk 0:01:56.6]} 23... b6
{[%clk 0:02:07.7]} 24. Kf1 {[%clk 0:01:53]} 24... h6 {[%clk 0:02:00]} 25. Bd2
{[%clk 0:01:52.3]} 25... Nd6 {[%clk 0:01:54.7]} 26. Bd3 {[%clk 0:01:51.9]} 26...
Ne4 {[%clk 0:01:49.5]} 27. Be3 {[%clk 0:01:39.9]} 27... f5 {[%clk 0:01:49.1]}
28. f3 {[%clk 0:01:22.8]} 28... Nd6 {[%clk 0:01:41]} 29. Bf4 {[%clk 0:01:18.2]}
29... Re6 {[%clk 0:01:39.8]} 30. Re1 {[%clk 0:01:11.2]} 30... Rxe1+ {[%clk
0:01:33]} 31. Kxe1 {[%clk 0:01:12.1]} 31... Nf7 {[%clk 0:01:33.5]} 32. Bb8
{[%clk 0:01:11.6]} 32... Nc6 {[%clk 0:01:33.2]} 33. Bc7 {[%clk 0:01:10.5]} 33...
Kf6 {[%clk 0:01:30.8]} 34. Bb5 {[%clk 0:01:10]} 34... Nfd8 {[%clk 0:01:31.1]}
35. Kd2 {[%clk 0:01:07]} 35... Ke6 {[%clk 0:01:30.4]} 36. Ke3 {[%clk 0:01:01.8]}
36... Kd7 {[%clk 0:01:30.4]} 37. Bxd8 {[%clk 0:00:56.3]} 37... Kxd8 {[%clk
0:01:15.1]} 38. Bxc6 {[%clk 0:00:56.3]} 38... Kc7 {[%clk 0:01:16]} 39. Bb5
{[%clk 0:00:56.3]} 39... g5 {[%clk 0:01:16.1]} 40. Kd3 {[%clk 0:00:56]} 40...
Kd6 {[%clk 0:01:16.2]} 41. Bc4 {[%clk 0:00:54.4]} 41... Ke5 {[%clk 0:01:16.5]}
42. Ke3 {[%clk 0:00:54.8]} 42... h5 {[%clk 0:01:16.1]} 43. g3 {[%clk 0:00:54.7]}
43... Kf6 {[%clk 0:01:10.9]} 44. f4 {[%clk 0:00:54.9]} 44... h4 {[%clk
0:01:10.1]} 45. gxh4 {[%clk 0:00:54.3]} 45... g4 {[%clk 0:01:07.9]} 46. hxg4
{[%clk 0:00:52.3]} 46... fxg4 {[%clk 0:01:08.8]} 47. Kf2 {[%clk 0:00:52.8]}
47... Kf5 {[%clk 0:01:09.3]} 48. Kg3 {[%clk 0:00:53.5]} 48... Ke4 {[%clk
0:01:09.2]} 49. Kxg4 {[%clk 0:00:54.4]} 49... Ke3 {[%clk 0:01:10.1]} 50. f5
{[%clk 0:00:54.8]} 50... Kd4 {[%clk 0:01:11]} 51. b3 {[%clk 0:00:55.1]} 51...
Ke3 {[%clk 0:01:11.9]} 52. f6 {[%clk 0:00:55.6]} 52... Kd2 {[%clk 0:01:12.8]}
53. f7 {[%clk 0:00:56.5]} 53... Kc1 {[%clk 0:01:13.7]} 54. f8=Q {[%clk 0:00:57]}
54... Kb2 {[%clk 0:01:14.6]} 55. Qf6+ {[%clk 0:00:57]} 55... Ka3 {[%clk
0:01:15.5]} 56. Qc3 {[%clk 0:00:56.6]} 1-0

[Event "*** Titled Tuesday Blitz"]
[Site "Chess.com"]
[Date "2020.05.12"]
[Round "10"]
[White "Oleksandr_Bortnyk"]
[Black "Hikaru"]
[Result "0-1"]
[WhiteElo "2989"]
[BlackElo "3251"]
[TimeControl "180+1"]
[EndTime "11:53:47 PDT"]
[Termination "Hikaru won on time"]

1. e4 {[%clk 0:03:00.9]} 1... g6 {[%clk 0:02:54.5]} 2. d4 {[%clk 0:02:57.9]}
2... Bg7 {[%clk 0:02:54.5]} 3. Nf3 {[%clk 0:02:57.2]} 3... c6 {[%clk 0:02:54.4]}
4. Nc3 {[%clk 0:02:57.3]} 4... d6 {[%clk 0:02:54.3]} 5. h3 {[%clk 0:02:57.4]}
5... b5 {[%clk 0:02:54.5]} 6. Bd3 {[%clk 0:02:49.5]} 6... a6 {[%clk 0:02:49.8]}
7. O-O {[%clk 0:02:48.7]} 7... Bb7 {[%clk 0:02:50.1]} 8. Be3 {[%clk 0:02:38.8]}
8... Nd7 {[%clk 0:02:49.1]} 9. Ne2 {[%clk 0:02:34.3]} 9... e5 {[%clk 0:02:48.3]}
10. c3 {[%clk 0:02:31.9]} 10... Ngf6 {[%clk 0:02:47.8]} 11. Ng3 {[%clk
0:02:31.6]} 11... O-O {[%clk 0:02:47.7]} 12. Qd2 {[%clk 0:02:30]} 12... Re8
{[%clk 0:02:46.2]} 13. Bh6 {[%clk 0:02:15.1]} 13... Qe7 {[%clk 0:02:39.4]} 14.
Bxg7 {[%clk 0:02:02.6]} 14... Kxg7 {[%clk 0:02:39.4]} 15. Qg5 {[%clk 0:01:59.6]}
15... Kh8 {[%clk 0:02:39]} 16. Rae1 {[%clk 0:01:43.5]} 16... c5 {[%clk
0:02:37.4]} 17. d5 {[%clk 0:01:43.8]} 17... c4 {[%clk 0:02:37.5]} 18. Bc2 {[%clk
0:01:43.6]} 18... Nc5 {[%clk 0:02:38.2]} 19. Qd2 {[%clk 0:01:35.1]} 19... Nfd7
{[%clk 0:02:28.7]} 20. Nh2 {[%clk 0:01:19.7]} 20... a5 {[%clk 0:02:26.5]} 21. a3
{[%clk 0:01:15.7]} 21... Bc8 {[%clk 0:02:20.9]} 22. Ng4 {[%clk 0:01:12.4]} 22...
Nb6 {[%clk 0:02:16.3]} 23. Nh6 {[%clk 0:01:09.5]} 23... Qf8 {[%clk 0:02:08.4]}
24. Qg5 {[%clk 0:00:55]} 24... f6 {[%clk 0:02:07.2]} 25. Qh4 {[%clk 0:00:55.4]}
25... Nd3 {[%clk 0:01:43.5]} 26. Bxd3 {[%clk 0:00:50.8]} 26... cxd3 {[%clk
0:01:44.4]} 27. f4 {[%clk 0:00:50.4]} 27... exf4 {[%clk 0:01:34]} 28. Qxf4
{[%clk 0:00:51.3]} 28... Nc4 {[%clk 0:01:33.5]} 29. b3 {[%clk 0:00:31.6]} 29...
Ne5 {[%clk 0:01:28.8]} 30. Qd2 {[%clk 0:00:22.9]} 30... a4 {[%clk 0:01:26]} 31.
b4 {[%clk 0:00:20.9]} 31... Nc4 {[%clk 0:01:23.4]} 32. Qf4 {[%clk 0:00:21.1]}
32... Ra7 {[%clk 0:01:16.8]} 33. Rf2 {[%clk 0:00:20]} 33... d2 {[%clk
0:01:03.7]} 34. Rd1 {[%clk 0:00:18.8]} 34... Rae7 {[%clk 0:00:52.1]} 35. Kh2
{[%clk 0:00:11.2]} 35... Re5 {[%clk 0:00:47]} 36. Kg1 {[%clk 0:00:05.1]} 36...
Kg7 {[%clk 0:00:42.3]} 37. Ng4 {[%clk 0:00:02.1]} 37... Bxg4 {[%clk 0:00:41.4]}
38. hxg4 {[%clk 0:00:03]} 38... Qe7 {[%clk 0:00:37.7]} 39. Rdxd2 {[%clk
0:00:01.8]} 39... Nxd2 {[%clk 0:00:38]} 40. Qxd2 {[%clk 0:00:02.7]} 40... Rg5
{[%clk 0:00:37.8]} 41. Rf4 {[%clk 0:00:01.5]} 41... h5 {[%clk 0:00:34.8]} 42.
Kf2 {[%clk 0:00:01.1]} 42... hxg4 {[%clk 0:00:28.7]} 43. Ne2 {[%clk 0:00:01.3]}
43... Re5 {[%clk 0:00:25.5]} 0-1

[Event "*** Titled Tuesday Blitz"]
[Site "Chess.com"]
[Date "2020.05.12"]
[Round "10"]
[White "Piotrek1979"]
[Black "Munkhzul_Turmunkh"]
[Result "1-0"]
[WhiteElo "2378"]
[BlackElo "2483"]
[TimeControl "180+1"]
[EndTime "11:53:47 PDT"]
[Termination "Piotrek1979 won by resignation"]

1. e4 {[%clk 0:03:00.9]} 1... c5 {[%clk 0:02:59.6]} 2. Nf3 {[%clk 0:03:00.3]}
2... d6 {[%clk 0:03:00.1]} 3. d4 {[%clk 0:03:00.3]} 3... cxd4 {[%clk 0:03:01]}
4. Nxd4 {[%clk 0:03:00.7]} 4... Nf6 {[%clk 0:03:00]} 5. Nc3 {[%clk 0:03:01.2]}
5... a6 {[%clk 0:03:00.4]} 6. g3 {[%clk 0:03:00]} 6... e5 {[%clk 0:02:59.7]} 7.
Nde2 {[%clk 0:02:59]} 7... b5 {[%clk 0:02:59]} 8. a3 {[%clk 0:02:52.8]} 8... Be7
{[%clk 0:02:58.6]} 9. Bg2 {[%clk 0:02:52.9]} 9... O-O {[%clk 0:02:58.7]} 10. h3
{[%clk 0:02:53.2]} 10... Bb7 {[%clk 0:02:58.8]} 11. g4 {[%clk 0:02:53.1]} 11...
h6 {[%clk 0:02:57.5]} 12. Ng3 {[%clk 0:02:52.8]} 12... Re8 {[%clk 0:02:56.2]}
13. Be3 {[%clk 0:02:45.8]} 13... Nbd7 {[%clk 0:02:54.7]} 14. Qd2 {[%clk
0:02:45.8]} 14... Nb6 {[%clk 0:02:52.5]} 15. Bxb6 {[%clk 0:02:45.2]} 15... Qxb6
{[%clk 0:02:53.4]} 16. Nf5 {[%clk 0:02:44.9]} 16... Bf8 {[%clk 0:02:53.1]} 17.
Bf3 {[%clk 0:02:26.2]} 17... Rad8 {[%clk 0:02:44]} 18. Ne3 {[%clk 0:02:24.9]}
18... d5 {[%clk 0:02:22.1]} 19. Ncxd5 {[%clk 0:02:24]} 19... Nxd5 {[%clk
0:02:21.8]} 20. Nxd5 {[%clk 0:02:24.1]} 20... Bxd5 {[%clk 0:02:21.9]} 21. exd5
{[%clk 0:02:24.3]} 21... e4 {[%clk 0:02:22.5]} 22. Be2 {[%clk 0:02:18]} 22...
Re5 {[%clk 0:02:13.2]} 23. O-O-O {[%clk 0:02:16.7]} 23... Qxf2 {[%clk
0:02:10.3]} 24. Rhf1 {[%clk 0:02:12.4]} 24... Qg3 {[%clk 0:01:56.5]} 25. Qf4
{[%clk 0:02:06.4]} 25... Qxf4+ {[%clk 0:01:56.3]} 26. Rxf4 {[%clk 0:02:07.3]}
26... Bc5 {[%clk 0:01:56.7]} 27. Rf5 {[%clk 0:02:05.9]} 27... Rxf5 {[%clk
0:01:50.2]} 28. gxf5 {[%clk 0:02:05.3]} 28... Kf8 {[%clk 0:01:49.9]} 29. c3
{[%clk 0:02:04.9]} 29... Ke7 {[%clk 0:01:49.1]} 30. b4 {[%clk 0:02:04.2]} 30...
Bb6 {[%clk 0:01:48.4]} 31. a4 {[%clk 0:02:00.9]} 31... bxa4 {[%clk 0:01:43.4]}
32. Bxa6 {[%clk 0:02:00.4]} 32... Kf6 {[%clk 0:01:34.9]} 33. d6 {[%clk
0:01:58.3]} 33... Ke5 {[%clk 0:01:25.6]} 34. d7 {[%clk 0:01:45.8]} 34... Kxf5
{[%clk 0:01:21.8]} 35. c4 {[%clk 0:01:45.2]} 35... Be3+ {[%clk 0:01:20.9]} 36.
Kc2 {[%clk 0:01:41]} 36... Ke6 {[%clk 0:01:19.9]} 37. c5 {[%clk 0:01:39.5]}
37... f5 {[%clk 0:01:16.2]} 38. Kc3 {[%clk 0:01:10.1]} 38... Ke7 {[%clk
0:01:15.9]} 39. Bb5 {[%clk 0:01:08]} 39... a3 {[%clk 0:01:13.5]} 40. Rd5 {[%clk
0:00:56.3]} 40... a2 {[%clk 0:01:05.3]} 41. Kb2 {[%clk 0:00:56.3]} 41... Ra8
{[%clk 0:01:04.3]} 42. Ka1 {[%clk 0:00:39.5]} 42... Bg5 {[%clk 0:00:57.6]} 43.
Re5+ {[%clk 0:00:37.4]} 43... Kf7 {[%clk 0:00:53.3]} 44. Rxf5+ {[%clk
0:00:36.6]} 44... Bf6+ {[%clk 0:00:48.4]} 45. Rxf6+ {[%clk 0:00:37]} 45... gxf6
{[%clk 0:00:48.3]} 46. c6 {[%clk 0:00:37.9]} 46... e3 {[%clk 0:00:10.5]} 47. c7
{[%clk 0:00:37.6]} 47... e2 {[%clk 0:00:10.7]} 48. Bxe2 {[%clk 0:00:36.2]} 1-0

[Event "*** Titled Tuesday Blitz"]
[Site "Chess.com"]
[Date "2020.05.12"]
[Round "10"]
[White "XiaoKangZhong"]
[Black "Kildepiotr"]
[Result "1/2-1/2"]
[WhiteElo "2429"]
[BlackElo "2544"]
[TimeControl "180+1"]
[EndTime "11:53:49 PDT"]
[Termination "Game drawn by repetition"]

1. e4 {[%clk 0:03:00.9]} 1... g6 {[%clk 0:02:59.1]} 2. d4 {[%clk 0:02:39.8]}
2... Bg7 {[%clk 0:02:58.6]} 3. Nc3 {[%clk 0:02:40.5]} 3... c6 {[%clk 0:02:58.5]}
4. Nf3 {[%clk 0:02:36.2]} 4... d6 {[%clk 0:02:58.5]} 5. h3 {[%clk 0:02:35.4]}
5... Nf6 {[%clk 0:02:58.6]} 6. Bd3 {[%clk 0:02:31.9]} 6... O-O {[%clk
0:02:58.2]} 7. O-O {[%clk 0:02:31.7]} 7... Nbd7 {[%clk 0:02:57.9]} 8. Be3 {[%clk
0:02:28.5]} 8... e5 {[%clk 0:02:57.6]} 9. dxe5 {[%clk 0:02:28.2]} 9... dxe5
{[%clk 0:02:57.8]} 10. Qe2 {[%clk 0:02:25.7]} 10... Qe7 {[%clk 0:02:57.2]} 11.
a3 {[%clk 0:02:24.3]} 11... Nc5 {[%clk 0:02:56.7]} 12. b4 {[%clk 0:02:21]} 12...
Nxd3 {[%clk 0:02:56.6]} 13. cxd3 {[%clk 0:02:21.9]} 13... Nd7 {[%clk 0:02:48.1]}
14. d4 {[%clk 0:02:17.2]} 14... exd4 {[%clk 0:02:47.9]} 15. Bxd4 {[%clk
0:02:18.1]} 15... Ne5 {[%clk 0:02:42]} 16. Nxe5 {[%clk 0:02:15.2]} 16... Bxe5
{[%clk 0:02:42.9]} 17. Rfd1 {[%clk 0:02:13.8]} 17... Bxd4 {[%clk 0:02:40.8]} 18.
Rxd4 {[%clk 0:02:13.4]} 18... Be6 {[%clk 0:02:41.5]} 19. Rad1 {[%clk 0:02:10.9]}
19... a5 {[%clk 0:02:40.7]} 20. Qb2 {[%clk 0:01:47.8]} 20... axb4 {[%clk
0:02:40]} 21. Rxb4 {[%clk 0:01:47.5]} 21... b5 {[%clk 0:02:36.2]} 22. a4 {[%clk
0:01:46.2]} 22... bxa4 {[%clk 0:02:34.9]} 23. Rxa4 {[%clk 0:01:46.2]} 23... Rxa4
{[%clk 0:02:32.8]} 24. Nxa4 {[%clk 0:01:47.1]} 24... Rd8 {[%clk 0:02:27.2]} 25.
Rc1 {[%clk 0:01:39]} 25... Qa7 {[%clk 0:02:10.8]} 26. Nc5 {[%clk 0:01:34.4]}
26... Rb8 {[%clk 0:01:53.2]} 27. Qf6 {[%clk 0:01:22.3]} 27... Qa3 {[%clk
0:01:52.3]} 28. Qf4 {[%clk 0:01:14.6]} 28... Re8 {[%clk 0:01:43.6]} 29. Kh2
{[%clk 0:01:00.4]} 29... Qb2 {[%clk 0:01:27.1]} 30. Rd1 {[%clk 0:00:52.7]} 30...
Kg7 {[%clk 0:01:13.2]} 31. Rd6 {[%clk 0:00:44.7]} 31... Qc3 {[%clk 0:01:00.9]}
32. Rxc6 {[%clk 0:00:40.4]} 32... Qf6 {[%clk 0:00:50.9]} 33. Nxe6+ {[%clk
0:00:36.2]} 33... Rxe6 {[%clk 0:00:50.4]} 34. Qxf6+ {[%clk 0:00:33.1]} 34...
Kxf6 {[%clk 0:00:48.6]} 35. Rxe6+ {[%clk 0:00:32.1]} 35... Kxe6 {[%clk
0:00:44.3]} 36. Kg3 {[%clk 0:00:32.5]} 36... Ke5 {[%clk 0:00:43.4]} 37. Kf3
{[%clk 0:00:32.5]} 37... f5 {[%clk 0:00:31.2]} 38. exf5 {[%clk 0:00:32.6]} 38...
Kxf5 {[%clk 0:00:31.1]} 39. Ke3 {[%clk 0:00:28.1]} 39... h5 {[%clk 0:00:26]} 40.
Kf3 {[%clk 0:00:24.8]} 40... h4 {[%clk 0:00:23.8]} 41. Ke3 {[%clk 0:00:22.1]}
41... Ke5 {[%clk 0:00:23.6]} 42. f3 {[%clk 0:00:20.4]} 42... g5 {[%clk
0:00:21.4]} 43. Ke2 {[%clk 0:00:20.1]} 43... Ke6 {[%clk 0:00:20.9]} 44. Kf2
{[%clk 0:00:20]} 44... Kf6 {[%clk 0:00:19.7]} 45. Ke3 {[%clk 0:00:19.9]} 45...
Ke5 {[%clk 0:00:19.8]} 46. Kf2 {[%clk 0:00:20.1]} 46... Kf6 {[%clk 0:00:19.7]}
47. Ke3 {[%clk 0:00:16.1]} 47... Ke5 {[%clk 0:00:19.6]} 1/2-1/2

[Event "*** Titled Tuesday Blitz"]
[Site "Chess.com"]
[Date "2020.05.12"]
[Round "10"]
[White "FMalexhdez"]
[Black "frankshar"]
[Result "0-1"]
[WhiteElo "2061"]
[BlackElo "2350"]
[TimeControl "180+1"]
[EndTime "11:53:49 PDT"]
[Termination "frankshar won on time"]

1. e4 {[%clk 0:03:00.6]} 1... c6 {[%clk 0:02:59.1]} 2. d4 {[%clk 0:02:59.2]}
2... d5 {[%clk 0:02:59.2]} 3. exd5 {[%clk 0:02:59.6]} 3... cxd5 {[%clk
0:02:59.3]} 4. Bd3 {[%clk 0:03:00.2]} 4... Nc6 {[%clk 0:02:59.4]} 5. c3 {[%clk
0:03:00.1]} 5... g6 {[%clk 0:02:58.4]} 6. Bf4 {[%clk 0:02:56.8]} 6... Bh6 {[%clk
0:02:57.4]} 7. Ne2 {[%clk 0:02:32.9]} 7... Bg4 {[%clk 0:02:31.9]} 8. f3 {[%clk
0:02:31]} 8... Bf5 {[%clk 0:02:31.8]} 9. O-O {[%clk 0:02:27.8]} 9... Bxf4 {[%clk
0:02:24.4]} 10. Nxf4 {[%clk 0:02:25.2]} 10... Nf6 {[%clk 0:02:24.5]} 11. Re1
{[%clk 0:02:17.2]} 11... O-O {[%clk 0:02:23.2]} 12. Bf1 {[%clk 0:02:14]} 12...
Qb6 {[%clk 0:02:17.8]} 13. Qb3 {[%clk 0:02:08.8]} 13... e6 {[%clk 0:01:50.7]}
14. Nd2 {[%clk 0:02:06.9]} 14... h5 {[%clk 0:01:47.2]} 15. h4 {[%clk 0:01:54.7]}
15... Rfe8 {[%clk 0:01:40.6]} 16. Nd3 {[%clk 0:01:41.2]} 16... Bxd3 {[%clk
0:01:33.7]} 17. Bxd3 {[%clk 0:01:40.5]} 17... Qc7 {[%clk 0:01:33.4]} 18. Nf1
{[%clk 0:01:33]} 18... Kg7 {[%clk 0:01:24.2]} 19. a4 {[%clk 0:01:24.3]} 19...
Rab8 {[%clk 0:01:12.3]} 20. Ne3 {[%clk 0:01:09.4]} 20... Qf4 {[%clk 0:00:54.5]}
21. Qc2 {[%clk 0:00:48.8]} 21... Qxh4 {[%clk 0:00:48.6]} 22. Qf2 {[%clk
0:00:47.4]} 22... Qxf2+ {[%clk 0:00:47.9]} 23. Kxf2 {[%clk 0:00:47.6]} 23...
Rbc8 {[%clk 0:00:44.1]} 24. a5 {[%clk 0:00:46]} 24... Nd7 {[%clk 0:00:34.1]} 25.
a6 {[%clk 0:00:45.2]} 25... b6 {[%clk 0:00:33.3]} 26. Bb5 {[%clk 0:00:32.1]}
26... Rc7 {[%clk 0:00:30.7]} 27. g3 {[%clk 0:00:28.1]} 27... Nf6 {[%clk
0:00:17.7]} 28. Rec1 {[%clk 0:00:26]} 28... Rec8 {[%clk 0:00:17.2]} 29. Bd3
{[%clk 0:00:23.6]} 29... Nxd4 {[%clk 0:00:16]} 30. Rd1 {[%clk 0:00:16.8]} 30...
Nf5 {[%clk 0:00:14.1]} 31. Bxf5 {[%clk 0:00:14.6]} 31... gxf5 {[%clk 0:00:13.6]}
32. f4 {[%clk 0:00:11.3]} 32... Ng4+ {[%clk 0:00:12.8]} 33. Nxg4 {[%clk
0:00:10.2]} 33... hxg4 {[%clk 0:00:13.7]} 34. Rd2 {[%clk 0:00:07.4]} 34... Rc4
{[%clk 0:00:13]} 35. Ke3 {[%clk 0:00:03.9]} 35... Re4+ {[%clk 0:00:12.2]} 36.
Kf2 {[%clk 0:00:04.5]} 36... Rcc4 {[%clk 0:00:11.9]} 0-1